bitfinex-derivatives/quotes_SOLF0:USTF0_20240927
["timestamp","ask_amount","ask_price","bid_price","bid_amount"]
[1727456046758,19.59451478,159.41,159.31,3.1377]
[1727456047060,15.08,159.39,159.31,15.08]
[1727456047259,3.21464403,159.39,159.32,3.1374]
[1727456047560,3.19236152,159.39,159.32,3.1374]
[1727456047766,15.08,159.4,159.32,3.1374]
[1727456048064,3.1369,159.35,159.32,3.1374]
[1727456051264,3.1371,159.34,159.31,18.2176]
[1727456051470,3.1371,159.34,159.29,15.08]
[1727456052872,3.1371,159.34,159.31,3.1377]
[1727456053063,6.20136507,159.34,159.31,3.1377]
[1727456054478,6.20136507,159.34,159.31,12.7877]
[1727456055778,3.1371,159.34,159.31,12.7877]
[1727456056078,6.31676504,159.34,159.31,12.7877]
[1727456056269,3.17966504,159.34,159.31,12.7877]
[1727456056469,3.137,159.35,159.31,12.7877]
[1727456057076,3.07010801,159.34,159.31,12.7877]
[1727456059078,1.3595,159.41,159.33,9.65]
[1727456059280,3.16942065,159.4,159.36,9.65]
[1727456059487,3.16942065,159.4,159.38,9.65]
[1727456060585,9.65,159.4,159.36,12.7866]
[1727456060783,3.1402282,159.39,159.36,12.7866]
[1727456061287,6.2763282,159.39,159.36,12.7866]
[1727456062975,3.1402282,159.39,159.37,3.1365]
[1727456063182,3.136,159.4,159.37,3.1365]
[1727456063682,3.18400646,159.39,159.37,3.1365]
[1727456065289,9.65,159.39,159.34,9.65]
[1727456065486,9.65,159.38,159.34,9.65]
[1727456065789,9.65,159.4,159.36,3.1367]
[1727456065985,9.65,159.4,159.35,9.65]
[1727456066386,11.0095,159.41,159.37,9.65]
[1727456066888,3.21193166,159.4,159.37,9.65]
[1727456067092,67.78,159.45,159.38,9.65]
[1727456067093,9.65,159.43,159.38,9.65]
[1727456067685,3.1357,159.42,159.39,3.1361]
[1727456067892,6.24375775,159.42,159.39,3.1361]
[1727456068289,6.24375775,159.42,159.28,2.5134]
[1727456068290,69.047,159.45,159.41,9.65]
[1727456068488,67.78,159.45,159.41,9.65]
[1727456068692,3.1349,159.46,159.43,3.1352]
[1727456068892,9.65,159.45,159.41,9.65]
[1727456069996,12.785,159.45,159.42,3.1355]
[1727456070295,9.65,159.45,159.4,9.65]
[1727456070688,9.65,159.44,159.41,3.1356]
[1727456070890,9.65,159.44,159.39,9.65]
[1727456071297,3.1355,159.43,159.4,3.1358]
[1727456071493,3.1355,159.43,159.4,9.65]
[1727456071694,3.16312308,159.42,159.4,9.65]
[1727456071899,12.7852,159.44,159.41,3.1356]
[1727456072198,9.65,159.46,159.4,9.65]
[1727456072398,9.65,159.46,159.42,9.65]
[1727456072595,3.1348,159.46,159.43,12.7852]
[1727456072892,9.65,159.47,159.43,12.7852]
[1727456073090,9.65,159.46,159.43,3.1352]
[1727456073284,3.1351,159.45,159.42,9.65]
[1727456073493,9.65,159.46,159.42,3.1355]
[1727456073695,9.65,159.45,159.41,9.65]
[1727456073889,3.1353,159.44,159.41,12.7856]
[1727456074293,9.65,159.45,159.41,3.1356]
[1727456074496,3.1352,159.44,159.41,3.1356]
[1727456074695,3.1352,159.44,159.42,3.1355]
[1727456079709,12.785,159.45,159.42,3.1355]
[1727456079894,93.65014196,159.49,159.43,9.65]
[1727456080102,3.1347,159.47,159.43,9.65]
[1727456080394,9.65,159.48,159.43,9.65]
[1727456080597,9.65,159.48,159.44,3.135]
[1727456080805,3.1348,159.46,159.44,3.135]
[1727456081000,12.7848,159.46,159.42,9.65]
[1727456081199,92.31694196,159.49,159.44,9.65]
[1727456081406,9.65,159.49,159.44,9.65]
[1727456082003,3.1347,159.47,159.44,12.785]
[1727456082600,9.65,159.49,159.44,9.65]
[1727456083302,9.65,159.49,159.45,3.1349]
[1727456083303,3.1345,159.48,159.45,3.1349]
[1727456083807,9.65,159.47,159.43,12.7853]
[1727456084107,9.65,159.47,159.43,9.65]
[1727456085007,3.1349,159.46,159.43,12.7852]
[1727456090001,3.1346,159.47,159.44,12.785]
[1727456090205,9.9025,159.49,159.44,9.65]
[1727456090507,0.2525,159.49,159.45,9.65]
[1727456090810,67.76,159.61,159.47,9.65]
[1727456091110,1.2513,159.59,159.52,9.65]
[1727456091305,3.18716299,159.58,159.54,9.65]
[1727456091512,67.76,159.61,159.56,9.65]
[1727456091713,9.65,159.57,159.48,1.3607]
[1727456092009,12.70829688,159.57,159.48,1.3607]
[1727456092209,3.05829688,159.57,159.48,1.3607]
[1727456092414,9.65,159.55,159.5,9.65]
[1727456092709,12.86161933,159.55,159.51,9.65]
[1727456093210,9.65,159.54,159.48,1.3607]
[1727456093409,9.65,159.52,159.48,1.3607]
[1727456093611,3.1339,159.51,159.48,1.3607]
[1727456093809,3.1339,159.51,159.49,9.65]
[1727456094307,3.12947111,159.52,159.49,9.65]
[1727456094504,9.65,159.53,159.48,11.0107]
[1727456094706,3.1343,159.49,159.46,9.65]
[1727456095310,6.33024831,159.49,159.46,9.65]
[1727456095917,6.33024831,159.49,159.47,9.65]
[1727456097816,3.19594831,159.49,159.46,9.65]
[1727456098010,9.65,159.51,159.47,9.65]
[1727456098203,3.1341,159.5,159.47,9.65]
[1727456098606,12.7105621,159.51,159.47,9.65]
[1727456099611,3.1343,159.49,159.46,9.65]
[1727456099811,3.1343,159.49,159.47,9.65]
[1727456100603,3.134,159.5,159.48,9.65]
[1727456100913,9.65,159.52,159.48,9.65]
[1727456101106,3.1338,159.51,159.48,9.65]
[1727456101702,3.1338,159.51,159.48,12.7844]
[1727456101907,18.87,159.65,159.44,1.2895]
[1727456101908,21.9194,159.83,159.49,9.65]
[1727456102110,9.65,159.54,159.51,9.65]
[1727456102317,2.7494,159.6,159.53,9.65]
[1727456102516,9.65,159.58,159.53,9.65]
[1727456102716,9.65,159.58,159.52,9.65]
[1727456102912,3.1332,159.54,159.52,9.65]
[1727456103819,3.1028957,159.53,159.52,12.7836]
[1727456104116,9.65,159.58,159.52,9.65]
[1727456104818,3.1332,159.54,159.52,9.65]
[1727456105017,3.09686265,159.61,159.53,9.65]
[1727456105217,9.65,159.6,159.56,9.65]
[1727456105414,12.80678463,159.6,159.56,9.65]
[1727456106119,12.80678463,159.6,159.54,10.9269]
[1727456106421,67.74,159.62,159.57,9.65]
[1727456106719,77.39,159.62,159.56,9.65]
[1727456107124,80.56590906,159.62,159.56,9.65]
[1727456107323,70.91590906,159.62,159.56,9.65]
[1727456107524,9.65,159.61,159.56,9.65]
[1727456107920,3.1323,159.59,159.56,12.7827]
[1727456108223,9.65,159.61,159.56,9.65]
[1727456108520,9.65,159.6,159.56,9.65]
[1727456108727,9.65,159.6,159.55,9.65]
[1727456109623,3.1326,159.58,159.54,4.4099]
[1727456110026,70.91590906,159.62,159.57,9.65]
[1727456110228,70.91590906,159.62,159.58,9.65]
[1727456110527,3.1321,159.6,159.57,9.65]
[1727456110822,70.91590906,159.62,159.58,9.65]
[1727456111122,3.1326,159.57,159.56,9.65]
[1727456111319,9.65,159.61,159.56,9.65]
[1727456111514,3.1322,159.6,159.57,9.65]
[1727456111718,70.91590906,159.62,159.57,9.65]
[1727456112322,3.1323,159.59,159.56,3.1327]
[1727456112522,3.17590906,159.62,159.58,9.65]
[1727456112822,9.65,159.59,159.55,9.65]
[1727456113024,3.12903736,159.58,159.55,9.65]
[1727456113327,9.65,159.61,159.56,9.65]
[1727456113534,3.9736,159.67,159.58,9.65]
[1727456113827,9.65,159.64,159.58,9.65]
[1727456114023,3.1322,159.6,159.58,9.65]
[1727456114324,6.29602578,159.6,159.58,9.65]
[1727456114520,3.1322,159.6,159.58,9.65]
[1727456114724,12.83419712,159.61,159.56,9.65]
[1727456114928,9.65,159.61,159.56,9.65]
[1727456115321,9.65,159.59,159.54,1.2769]
[1727456115521,9.65,159.59,159.54,10.9269]
[1727456115926,3.1329,159.56,159.54,10.9269]
[1727456116319,3.1327,159.57,159.55,9.65]
[1727456116828,3.11838203,159.59,159.57,3.1326]
[1727456117024,9.65,159.62,159.58,9.65]
[1727456117227,12.74883179,159.62,159.58,9.65]
[1727456117722,12.74883179,159.62,159.54,1.2769]
[1727456117915,9.65,159.61,159.56,9.65]
[1727456118524,9.65,159.61,159.54,1.2769]
[1727456118726,12.71560875,159.61,159.56,9.65]
[1727456118926,12.71560875,159.61,159.54,1.2769]
[1727456119226,3.06560875,159.61,159.57,9.65]
[1727456119427,9.65,159.62,159.57,9.65]
[1727456119625,12.81621814,159.62,159.57,9.65]
[1727456119828,9.65,159.61,159.57,9.65]
[1727456120125,9.65,159.59,159.55,9.65]
[1727456120826,3.9736,159.67,159.56,9.65]
[1727456121027,3.1324,159.59,159.57,9.65]
[1727456121223,6.32275753,159.59,159.57,9.65]
[1727456121532,3.1324,159.58,159.57,9.65]
[1727456124524,3.18596914,159.59,159.58,3.1324]
[1727456124726,9.65,159.62,159.57,9.65]
[1727456124928,9.65,159.62,159.56,9.65]
[1727456124929,9.65,159.6,159.56,9.65]
[1727456125230,9.65,159.6,159.55,9.65]
[1727456125427,9.65,159.59,159.55,9.65]
[1727456125623,3.1328,159.57,159.55,9.65]
[1727456125831,12.78706963,159.59,159.54,10.9269]
[1727456126230,3.1329,159.56,159.54,10.9269]
[1727456129934,3.11857756,159.57,159.55,9.65]
[1727456130137,9.65,159.62,159.56,9.65]
[1727456130335,71.6736,159.67,159.58,9.65]
[1727456130740,9.65,159.62,159.58,9.65]
[1727456130937,12.744011,159.62,159.58,9.65]
[1727456131341,71.6736,159.67,159.6,9.65]
[1727456131538,9.65,159.65,159.6,9.65]
[1727456131740,3.1318,159.62,159.6,9.65]
[1727456132135,9.65,159.64,159.6,9.65]
[1727456132336,3.1317,159.62,159.59,3.1321]
[1727456132844,6.25110001,159.62,159.59,3.1321]
[1727456133044,3.1317,159.62,159.59,3.1321]
[1727456133447,6.27581779,159.62,159.59,3.1321]
[1727456133741,3.1318,159.61,159.59,3.1321]
[1727456134545,3.0598192,159.62,159.58,15.04]
[1727456134748,85.4034,159.67,159.58,15.04]
[1727456135143,15.04,159.65,159.56,15.04]
[1727456135752,3.1321,159.6,159.57,3.1326]
[1727456136246,15.04,159.66,159.56,15.04]
[1727456136753,3.1318,159.61,159.56,15.04]
[1727456136955,3.09311166,159.61,159.56,15.04]
[1727456137142,15.04,159.66,159.56,15.04]
[1727456137346,3.1319,159.61,159.58,3.1322]
[1727456137547,6.27077053,159.61,159.58,3.1322]
[1727456137747,15.04,159.66,159.56,15.04]
[1727456138045,15.04,159.66,159.57,3.1324]
[1727456138445,15.04,159.63,159.54,1.2769]
[1727456138845,15.04,159.61,159.54,1.2769]
[1727456139059,15.04,159.6,159.53,1.326]
[1727456139253,3.133,159.55,159.52,4.3812]
[1727456139557,3.15952091,159.56,159.52,1.2478]
[1727456139751,15.04,159.61,159.52,1.2478]
[1727456139951,15.04,159.61,159.53,3.1332]
[1727456140154,15.04,159.59,159.51,15.04]
[1727456140650,15.04,159.59,159.49,15.04]
[1727456140850,15.04,159.57,159.49,15.04]
[1727456141753,3.1334,159.54,159.5,3.1339]
[1727456141954,3.16547635,159.53,159.5,3.1339]
[1727456142353,6.29887635,159.53,159.5,3.1339]
[1727456143459,3.16547635,159.53,159.47,15.04]
[1727456143759,15.04,159.55,159.47,15.04]
[1727456144059,3.1337,159.52,159.47,15.04]
[1727456144253,18.19290667,159.55,159.47,15.04]
[1727456144758,3.1338,159.51,159.47,15.04]
[1727456145350,3.15290667,159.55,159.48,3.1342]
[1727456145557,3.1337,159.52,159.47,15.04]
[1727456146062,3.1337,159.52,159.49,3.1341]
[1727456147259,3.1338,159.51,159.48,3.1343]
[1727456148361,3.1338,159.51,159.49,3.1341]
[1727456148561,3.1338,159.51,159.47,15.04]
[1727456148861,3.1338,159.51,159.48,3.1342]
[1727456149056,15.04,159.55,159.46,1.2491]
[1727456149556,3.1343,159.49,159.46,4.3838]
[1727456149763,15.04,159.52,159.45,2.5534]
[1727456149953,15.04,159.52,159.43,15.04]
[1727456150161,3.1347,159.47,159.41,68.41785782]
[1727456150359,6.2407286,159.47,159.41,68.41785782]
[1727456150656,6.2407286,159.47,159.44,3.135]
[1727456151060,3.1060286,159.47,159.41,68.41785782]
[1727456151359,15.04,159.5,159.42,3.1355]
[1727456151559,3.1351,159.45,159.42,3.1355]
[1727456152152,3.1351,159.45,159.43,3.1353]
[1727456153162,3.1351,159.45,159.42,3.1355]
[1727456153559,3.07529447,159.46,159.39,3.9445]
[1727456153766,15.04,159.46,159.39,1.2777]
[1727456153961,18.1926073,159.46,159.37,15.04]
[1727456154265,3.1354,159.43,159.37,15.04]
[1727456154658,15.04,159.46,159.37,15.04]
[1727456155359,3.1352,159.44,159.4,3.1358]
[1727456156465,3.1353,159.43,159.4,3.1358]
[1727456156960,15.04,159.42,159.36,1.251]
[1727456157664,18.20877039,159.42,159.36,1.251]
[1727456157864,3.1361,159.4,159.36,4.3877]
[1727456158268,3.1361,159.4,159.36,1.251]
[1727456158765,3.1361,159.4,159.37,3.1365]
[1727456159561,18.20877039,159.42,159.35,2.6778]
[1727456159758,3.16877039,159.42,159.35,17.7178]
[1727456159965,17.6228,159.45,159.35,17.7178]
[1727456160160,17.6228,159.45,159.37,15.04]
[1727456160368,3.20922681,159.45,159.39,15.04]
[1727456160558,3.1349,159.46,159.39,15.04]
[1727456160758,6.34820661,159.46,159.39,15.04]
[1727456160967,82.78,159.47,159.39,15.04]
[1727456161158,3.135,159.45,159.41,3.1356]
[1727456161363,3.135,159.45,159.39,15.04]
[1727456161657,3.1347,159.46,159.42,3.1354]
[1727456162366,70.93416297,159.47,159.39,15.04]
[1727456162878,70.93416297,159.47,159.45,3.1348]
[1727456163168,3.19416297,159.47,159.45,3.1348]
[1727456163371,16.4204,159.51,159.44,3.1351]
[1727456164867,15.04,159.49,159.4,15.04]
[1727456165069,15.04,159.47,159.36,16.3268]
[1727456165368,3.1352,159.44,159.36,16.3268]
[1727456165770,15.04,159.47,159.36,16.3268]
[1727456165964,15.04,159.45,159.36,16.3268]
[1727456166574,3.07162555,159.45,159.36,16.3268]
[1727456166775,15.04,159.47,159.38,15.04]
[1727456167070,15.04,159.49,159.38,15.04]
[1727456167268,18.24622487,159.49,159.38,15.04]
[1727456167669,3.1348,159.46,159.38,15.04]
[1727456168071,18.24622487,159.49,159.38,15.04]
[1727456168373,18.24622487,159.49,159.42,3.1354]
[1727456168374,3.135,159.45,159.42,3.1354]
[1727456168772,18.24622487,159.49,159.38,15.04]
[1727456169174,3.20622487,159.49,159.42,15.04]
[1727456169480,84.1804,159.51,159.42,15.04]
[1727456170473,3.1345,159.48,159.42,15.04]
[1727456170666,69.1404,159.51,159.42,15.04]
[1727456170667,3.08135737,159.47,159.42,15.04]
[1727456170871,69.1404,159.51,159.42,15.04]
[1727456171473,67.76,159.51,159.44,15.04]
[1727456171672,3.13249372,159.5,159.44,15.04]
[1727456171878,3.13249372,159.5,159.48,3.1342]
[1727456172077,3.13249372,159.5,159.44,15.04]
[1727456172274,3.13249372,159.5,159.45,1.3483]
[1727456172578,3.13249372,159.5,159.48,3.1343]
[1727456173377,3.1343,159.49,159.45,4.4831]
[1727456173577,3.11186887,159.48,159.45,4.4831]
[1727456173779,82.8,159.51,159.45,4.4831]
[1727456173982,3.1345,159.48,159.45,3.1348]
[1727456174176,82.8,159.51,159.44,3.135]
[1727456174476,82.8,159.51,159.42,15.04]
[1727456174677,3.1346,159.47,159.44,3.1351]
[1727456174882,6.25493697,159.47,159.44,3.1351]
[1727456175078,3.12033697,159.47,159.42,15.04]
[1727456175281,82.8,159.51,159.42,15.04]
[1727456175483,3.1342,159.49,159.46,3.1346]
[1727456175677,3.1342,159.49,159.42,15.04]
[1727456175678,3.14186114,159.48,159.42,15.04]
[1727456175981,3.1345,159.48,159.45,3.1349]
[1727456176188,3.13715635,159.47,159.42,15.04]
[1727456176380,82.8,159.51,159.42,15.04]
[1727456176776,15.04,159.49,159.4,15.04]
[1727456176983,18.24898287,159.49,159.4,15.04]
[1727456177584,18.24898287,159.49,159.42,3.1354]
[1727456177880,18.24898287,159.49,159.4,15.04]
[1727456178288,15.04,159.47,159.39,1.2677]
[1727456178686,3.1351,159.45,159.41,3.1356]
[1727456178989,3.1351,159.45,159.39,1.2677]
[1727456179889,3.1353,159.44,159.39,1.2677]
[1727456180282,18.25126022,159.47,159.39,1.2677]
[1727456180478,3.1351,159.45,159.42,3.1355]
[1727456180892,3.1351,159.45,159.41,3.1357]
[1727456181090,3.1348,159.46,159.39,1.2677]
[1727456181285,18.25126022,159.47,159.39,1.2677]
[1727456181887,3.135,159.45,159.41,3.1356]
[1727456183594,3.21126022,159.47,159.4,15.04]
[1727456183792,69.0944,159.51,159.42,15.04]
[1727456183793,84.1344,159.51,159.42,15.04]
[1727456184093,3.1341,159.5,159.46,3.1347]
[1727456184290,3.18876317,159.5,159.46,3.1347]
[1727456184490,84.1344,159.51,159.45,3.1349]
[1727456184891,84.1344,159.51,159.42,15.04]
[1727456185298,3.1343,159.49,159.45,3.1348]
[1727456185492,3.17530363,159.48,159.45,3.1348]
[1727456186498,6.30970363,159.48,159.45,3.1348]
[1727456186793,3.17530363,159.48,159.42,15.04]
[1727456186996,15.04,159.49,159.4,15.04]
[1727456187191,18.17672576,159.49,159.4,15.04]
[1727456187495,3.1347,159.47,159.4,15.04]
[1727456187690,18.17672576,159.49,159.4,15.04]
[1727456187894,18.17672576,159.49,159.39,1.2677]
[1727456187895,15.04,159.47,159.39,1.2677]
[1727456188594,3.1351,159.45,159.42,3.1355]
[1727456189191,3.1353,159.44,159.41,3.1357]
[1727456189700,15.04,159.47,159.39,1.2677]
[1727456190590,3.1351,159.45,159.41,3.1357]
[1727456190787,15.04,159.46,159.39,1.2677]
[1727456190994,3.1352,159.44,159.41,3.1356]
[1727456191191,15.04,159.46,159.39,1.2677]
[1727456191392,15.04,159.48,159.39,1.2677]
[1727456191796,15.04,159.48,159.4,15.04]
[1727456192189,3.16190279,159.48,159.4,15.04]
[1727456192386,15.04,159.5,159.4,15.04]
[1727456192796,3.1347,159.47,159.45,3.1349]
[1727456193193,3.1347,159.47,159.4,15.04]
[1727456193395,3.1465309,159.5,159.42,15.04]
[1727456193595,69.0944,159.51,159.42,15.04]
[1727456193795,3.1339,159.51,159.48,3.1342]
[1727456194292,1.2659,159.52,159.45,1.3281]
[1727456194494,3.1341,159.5,159.47,3.1345]
[1727456194789,3.15902691,159.49,159.45,1.3281]
[1727456194996,3.134,159.5,159.46,3.1346]
[1727456195800,6.34308648,159.49,159.46,3.1346]
[1727456195997,1.2659,159.52,159.45,1.3281]
[1727456196399,3.134,159.5,159.45,1.3281]
[1727456196597,6.29678989,159.5,159.47,3.1344]
[1727456196797,6.29678989,159.5,159.45,1.3281]
[1727456196994,15.04,159.55,159.48,3.1344]
[1727456197197,15.04,159.55,159.45,1.3281]
[1727456197397,15.04,159.55,159.45,2.708]
[1727456197998,3.1336,159.52,159.48,3.1342]
[1727456198391,15.04,159.55,159.48,3.1342]
[1727456198595,15.04,159.53,159.45,2.708]
[1727456198798,15.04,159.53,159.45,1.3281]
[1727456199299,3.1341,159.5,159.47,3.1344]
[1727456199497,3.06225148,159.49,159.45,1.3281]
[1727456200001,3.06225148,159.49,159.45,16.3681]
[1727456200600,6.19645148,159.49,159.45,16.3681]
[1727456200806,3.1342,159.49,159.45,16.3681]
[1727456201195,3.06495225,159.49,159.47,3.1344]
[1727456201399,3.134,159.5,159.47,3.1344]
[1727456201805,15.04,159.51,159.42,15.04]
[1727456202006,15.04,159.51,159.41,15.04]
[1727456202202,15.04,159.49,159.41,15.04]
[1727456202410,18.1798984,159.49,159.41,15.04]
[1727456202605,15.04,159.47,159.39,2.6035]
[1727456203108,3.135,159.45,159.42,3.1354]
[1727456204010,3.1348,159.46,159.39,17.6435]
[1727456204512,1.2516,159.48,159.39,17.6435]
[1727456205010,3.1351,159.45,159.42,3.1354]
[1727456205806,3.1346,159.47,159.4,15.04]
[1727456206007,1.2516,159.48,159.4,15.04]
[1727456206312,3.1346,159.47,159.44,3.1351]
[1727456206514,1.2516,159.48,159.4,15.04]
[1727456207408,3.1349,159.46,159.43,3.1353]
[1727456208507,3.135,159.45,159.42,3.1355]
[1727456209109,3.1356,159.42,159.39,4.4569]
[1727456209299,1.2516,159.48,159.35,15.04]
[1727456209300,15.04,159.45,159.35,15.04]
[1727456209615,3.1355,159.42,159.39,3.1361]
[1727456210505,3.07387054,159.41,159.39,3.1361]
[1727456210713,3.1354,159.43,159.4,3.1359]
[1727456210905,15.04,159.47,159.39,15.04]
[1727456211410,3.1351,159.45,159.41,3.1357]
[1727456212103,15.04,159.47,159.42,3.1354]
[1727456212306,2.5189,159.48,159.39,15.04]
[1727456212499,2.5189,159.48,159.41,15.04]
[1727456212909,3.1348,159.46,159.43,3.1352]
[1727456213310,3.1398984,159.49,159.41,15.04]
[1727456213499,82.78,159.51,159.43,15.04]
[1727456213899,82.78,159.51,159.41,15.04]
[1727456214405,3.1349,159.46,159.43,3.1352]
[1727456215006,3.1349,159.46,159.44,3.1351]
[1727456216208,3.17362092,159.47,159.45,3.1349]
[1727456216407,3.17362092,159.47,159.41,15.04]
[1727456216408,15.04,159.51,159.41,15.04]
[1727456217009,3.1349,159.46,159.43,3.1352]
[1727456217211,6.27433188,159.46,159.43,3.1352]
[1727456217613,3.1342,159.49,159.43,15.04]
[1727456217808,82.78,159.54,159.43,15.04]
[1727456218115,3.1343,159.49,159.46,3.1347]
[1727456218316,6.2037855,159.49,159.46,3.1347]
[1727456218515,3.0694855,159.49,159.46,3.1347]
[1727456218817,3.1343,159.49,159.46,3.1347]
[1727456219024,6.32234932,159.49,159.46,3.1347]
[1727456219614,3.1344,159.48,159.46,3.1347]
[1727456220215,6.21047238,159.48,159.46,3.1347]
[1727456220417,3.1347,159.47,159.42,15.04]
[1727456221126,3.12774755,159.46,159.42,15.04]
[1727456221622,3.1347,159.47,159.42,15.04]
[1727456221819,3.1344,159.48,159.42,15.04]
[1727456222014,3.1344,159.48,159.45,3.1349]
[1727456222216,3.135,159.45,159.4,15.04]
[1727456222422,3.11018474,159.48,159.4,15.04]
[1727456222618,15.04,159.5,159.4,15.04]
[1727456223224,18.16586582,159.5,159.43,3.1353]
[1727456223523,3.1349,159.46,159.43,3.1353]
[1727456224614,3.135,159.45,159.43,3.1353]
[1727456225109,18.16586582,159.5,159.43,3.1353]
[1727456225320,3.1349,159.46,159.43,3.1353]
[1727456228025,3.135,159.45,159.4,15.04]
[1727456228427,3.1347,159.47,159.44,3.1351]
[1727456228723,3.12586582,159.5,159.43,15.04]
[1727456228928,3.1343,159.49,159.46,3.1346]
[1727456229122,3.11119992,159.49,159.46,3.1346]
[1727456229321,15.04,159.52,159.46,3.1346]
[1727456229521,3.1342,159.49,159.46,3.1346]
[1727456229719,3.06445977,159.48,159.46,3.1346]
[1727456230024,3.06445977,159.48,159.45,15.04]
[1727456230227,67.74,159.54,159.46,15.04]
[1727456230625,3.1337,159.52,159.46,15.04]
[1727456231125,3.1337,159.52,159.49,3.134]
[1727456231327,3.10975001,159.51,159.49,3.134]
[1727456231527,3.1335,159.53,159.49,15.04]
[1727456231724,67.74,159.54,159.49,15.04]
[1727456232115,3.12857037,159.53,159.49,15.04]
[1727456232319,84.0478,159.63,159.52,15.04]
[1727456232822,3.1324,159.59,159.55,3.1329]
[1727456233015,84.0478,159.63,159.55,15.04]
[1727456233016,69.0078,159.63,159.55,15.04]
[1727456233217,3.1317,159.62,159.58,3.1323]
[1727456233434,3.17049514,159.62,159.58,3.1323]
[1727456233729,3.1318,159.62,159.58,3.1323]
[1727456234029,3.06454028,159.62,159.58,3.1323]
[1727456234225,107.25738696,159.65,159.55,15.04]
[1727456234417,3.1316,159.62,159.55,15.04]
[1727456234623,3.18052636,159.65,159.57,15.04]
[1727456234823,15.04,159.67,159.6,3.1318]
[1727456235031,3.1313,159.64,159.6,3.1318]
[1727456235222,3.07457151,159.63,159.59,15.04]
[1727456235426,3.8896,159.69,159.59,15.04]
[1727456235427,18.9296,159.69,159.61,3.1317]
[1727456235622,22.02486092,159.69,159.59,15.04]
[1727456236232,3.131,159.66,159.62,3.1315]
[1727456236924,3.1311,159.65,159.62,3.1315]
[1727456237120,3.1311,159.65,159.61,3.1317]
[1727456237326,22.02486092,159.69,159.61,3.1317]
[1727456237630,15.04,159.67,159.57,15.04]
[1727456237934,15.04,159.67,159.53,4.0566]
[1727456238133,3.1317,159.62,159.56,15.04]
[1727456238727,3.1317,159.62,159.58,3.1323]
[1727456239129,3.1317,159.62,159.56,15.04]
[1727456239430,16.3078,159.69,159.58,15.04]
[1727456239624,19.3789008,159.69,159.58,15.04]
[1727456239825,19.3789008,159.69,159.61,3.1316]
[1727456239826,3.1312,159.65,159.61,3.1316]
[1727456240025,3.1312,159.65,159.58,15.04]
[1727456240220,19.3789008,159.69,159.6,15.04]
[1727456240221,3.0711008,159.69,159.6,15.04]
[1727456240433,67.74,159.7,159.62,3.1316]
[1727456240823,67.74,159.7,159.61,1.3163]
[1727456241026,67.74,159.7,159.62,16.3882]
[1727456241027,3.20522642,159.7,159.62,16.3882]
[1727456241226,2.5223,159.74,159.64,15.04]
[1727456241435,1.2575,159.74,159.64,15.04]
[1727456241936,4.36181883,159.74,159.64,15.04]
[1727456242138,1.3128,159.77,159.67,15.04]
[1727456242139,15.04,159.77,159.67,15.04]